bitfinex-derivatives/quotes_SOLF0:USTF0_20250109
["timestamp","ask_amount","ask_price","bid_price","bid_amount"]
[1736445729981,1.555,188.3,188.2,2.657]
[1736445730281,31.95570412,188.36,188.19,31.95570412]
[1736445730580,3.1479,188.29,188.16,31.95570412]
[1736445730785,6.9986,188.28,188.17,0.97645225]
[1736445730975,6.9986,188.28,188.15,2.6578]
[1736445731176,31.95570412,188.27,188.1,31.95570412]
[1736445731372,6.9986,188.28,188.06,5.48]
[1736445731373,31.95570412,188.24,188.11,0.97665766]
[1736445731580,31.95570412,188.24,188.08,0.97665766]
[1736445731881,2.6572,188.2,188.1,31.95570412]
[1736445732085,2.6572,188.2,188.11,0.97665766]
[1736445732275,2.6565,188.24,188.18,2.6574]
[1736445732579,1.5186,188.28,188.16,31.95570412]
[1736445733179,1.5186,188.28,188.14,5.5]
[1736445733482,1.5186,188.28,188.16,31.95570412]
[1736445733679,2.6565,188.25,188.19,2.6572]
[1736445734182,1.5186,188.28,188.16,31.95570412]
[1736445734780,1.5186,188.28,188.19,31.95570412]
[1736445734979,4.1746,188.28,188.21,2.6568]
[1736445735184,1.5186,188.28,188.19,31.95570412]
[1736445735484,2.6568,188.23,188.16,34.61320412]
[1736445735681,5.52,188.26,188.1,31.95570412]
[1736445735877,31.95570412,188.25,188.11,0.97661485]
[1736445736079,31.95570412,188.25,188.07,37.47570412]
[1736445736377,5.52,188.26,188.1,31.95570412]
[1736445736575,31.95570412,188.24,188.1,31.95570412]
[1736445736776,2.6578,188.15,188.1,31.95570412]
[1736445737176,5.54,188.18,188.07,31.95570412]
[1736445737478,1.5205,188.14,188.07,31.95570412]
[1736445737878,2.6584,188.12,188.04,31.95570412]
[1736445738181,1.5205,188.14,188.07,31.95570412]
[1736445738377,4.1785,188.14,188.09,2.6586]
[1736445738580,1.5205,188.14,188.07,31.95570412]
[1736445739477,1.5205,188.14,188.1,2.6585]
[1736445740184,1.5205,188.14,188.07,31.95570412]
[1736445741084,1.5205,188.14,188.04,31.95570412]
[1736445741284,1.5205,188.14,188.01,92.29587017]
[1736445741482,1.5205,188.14,188.01,31.95570412]
[1736445741682,2.6588,188.09,188.03,2.6595]
[1736445742489,1.5205,188.14,188.01,2.6598]
[1736445742490,2.659,188.07,188.01,2.6598]
[1736445743489,5.5,188.1,187.98,31.95570412]
[1736445744285,2.6592,188.05,187.98,31.95570412]
[1736445744487,1.6422,188.09,187.98,31.95570412]
[1736445744786,1.6422,188.09,188.02,2.6595]
[1736445745192,5.5,188.1,188.01,31.95570412]
[1736445745788,1.5205,188.14,188.05,2.6591]
[1736445745986,1.5205,188.14,188.01,31.95570412]
[1736445746582,1.5205,188.14,187.98,31.95570412]
[1736445746783,2.6587,188.09,188.01,31.95570412]
[1736445747091,1.5205,188.14,188.01,31.95570412]
[1736445747288,2.6587,188.09,188.03,2.6594]
[1736445747585,1.5205,188.14,188.01,31.95570412]
[1736445748387,2.6585,188.11,188.04,2.6592]
[1736445748588,1.5205,188.14,188.04,2.6592]
[1736445748990,1.5205,188.14,187.98,31.95570412]
[1736445749589,2.6588,188.09,188.04,2.6593]
[1736445749791,1.5205,188.14,188.01,31.95570412]
[1736445750690,1.5205,188.14,188.05,2.6591]
[1736445751188,2.6578,188.15,188.1,2.6584]
[1736445751393,1.5987,188.21,188.07,19.53546518]
[1736445751892,1.5987,188.21,188.1,19.53546518]
[1736445752095,1.6153,188.24,188.13,19.53546518]
[1736445752393,1.5987,188.27,188.16,19.53546518]
[1736445753292,1.5987,188.27,188.17,31.71250069]
[1736445753696,2.6559,188.29,188.2,31.71250069]
[1736445753899,1.4917,188.32,188.2,31.71250069]
[1736445754095,2.6556,188.31,188.24,2.6565]
[1736445754397,1.6157,188.34,188.23,31.71250069]
[1736445754995,1.6157,188.34,188.2,31.71250069]
[1736445755297,1.6157,188.34,188.25,2.6564]
[1736445755298,2.6554,188.33,188.25,2.6564]
[1736445755494,1.6157,188.34,188.25,2.6564]
[1736445755690,1.6157,188.34,188.2,31.71250069]
[1736445756001,31.71250069,188.4,188.25,31.71250069]
[1736445756298,3.1,188.41,188.25,31.71250069]
[1736445756999,3.1,188.41,188.21,5.5]
[1736445757000,31.71250069,188.4,188.22,31.71250069]
[1736445757599,2.6554,188.33,188.26,2.6561]
[1736445758800,37.19250069,188.4,188.24,2.6564]
[1736445759098,31.71250069,188.37,188.22,31.71250069]
[1736445759697,37.19250069,188.4,188.22,31.71250069]
[1736445759899,31.71250069,188.4,188.25,31.71250069]
[1736445760099,3.1,188.41,188.25,31.71250069]
[1736445760398,2.655,188.35,188.29,2.6558]
[1736445760997,2.655,188.35,188.3,2.6557]
[1736445761402,3.1,188.41,188.3,2.6557]
[1736445762003,3.1,188.41,188.29,2.6558]
[1736445762199,31.71250069,188.39,188.25,31.71250069]
[1736445762399,31.71250069,188.39,188.22,31.71250069]
[1736445762598,2.6551,188.34,188.25,2.6563]
[1736445762897,31.71250069,188.39,188.22,31.71250069]
[1736445763099,2.6553,188.33,188.27,2.656]
[1736445763603,31.71250069,188.39,188.22,31.71250069]
[1736445763804,31.71250069,188.36,188.19,31.71250069]
[1736445764206,31.71250069,188.33,188.19,31.71250069]
[1736445764404,3.0973,188.32,188.19,31.71250069]
[1736445765106,2.6557,188.3,188.24,2.6564]
[1736445765305,3.0973,188.32,188.24,2.6564]
[1736445765697,3.0973,188.32,188.27,2.6561]
[1736445765902,3.1373,188.38,188.22,31.71250069]
[1736445766299,3.1373,188.38,188.29,2.6558]
[1736445766300,2.6552,188.34,188.29,2.6558]
[1736445766805,3.1373,188.38,188.25,31.71250069]
[1736445767006,2.655,188.35,188.3,2.6556]
[1736445767610,2.6553,188.33,188.28,2.6558]
[1736445771520,18.9973,188.38,188.25,31.71250069]
[1736445771811,2.6551,188.35,188.25,31.71250069]
[1736445772218,2.6551,188.35,188.3,2.6557]
[1736445774019,18.9973,188.38,188.26,19.49666934]
[1736445774217,18.9973,188.38,188.19,19.49666934]
[1736445774419,19.49666934,188.33,188.19,19.49666934]
[1736445774618,2.6563,188.26,188.22,2.6567]
[1736445774811,1.6106,188.32,188.16,19.49666934]
[1736445775015,19.49666934,188.3,188.16,19.49666934]
[1736445775215,3.0635,188.29,188.16,19.49666934]
[1736445775811,2.6565,188.25,188.2,2.6571]
[1736445776310,3.0635,188.29,188.16,19.49666934]
[1736445776812,3.0635,188.29,188.13,19.49666934]
[1736445777220,2.6565,188.25,188.17,2.6574]
[1736445777417,3.0635,188.29,188.17,2.6574]
[1736445777926,2.6568,188.23,188.17,2.6574]
[1736445778416,2.6565,188.25,188.16,19.49666934]
[1736445778925,3.0635,188.29,188.21,2.6568]
[1736445778926,2.6563,188.26,188.21,2.6568]
[1736445779118,2.6563,188.26,188.19,19.49666934]
[1736445779313,3.0635,188.29,188.16,19.49666934]
[1736445779518,2.6565,188.25,188.2,2.657]
[1736445779726,3.0635,188.29,188.16,19.49666934]
[1736445780113,2.6561,188.27,188.22,2.6567]
[1736445781123,2.6563,188.26,188.22,2.6567]
[1736445781321,3.0635,188.29,188.16,19.49666934]
[1736445781523,2.6565,188.25,188.2,2.657]
[1736445781717,3.0635,188.29,188.2,2.657]
[1736445782221,3.0635,188.29,188.16,19.49666934]
[1736445782617,2.6567,188.24,188.16,19.49666934]
[1736445782823,3.0635,188.29,188.16,19.49666934]
[1736445783020,19.49666934,188.27,188.1,19.49666934]
[1736445783219,3.0635,188.29,188.1,19.49666934]
[1736445783220,19.49666934,188.24,188.1,19.49666934]
[1736445783415,19.49666934,188.21,187.97,9.86264514]
[1736445783619,3.1891,188.2,188.04,79.8166926]
[1736445783820,3.1891,188.2,188.12,2.6582]
[1736445784014,3.1891,188.2,188.1,19.49666934]
[1736445784215,2.6573,188.19,188.1,19.49666934]
[1736445784415,2.6573,188.19,188.04,60.32002326]
[1736445784416,19.49666934,188.3,188.13,19.49666934]
[1736445784618,4.6234,188.29,188.16,19.49666934]
[1736445785521,2.6565,188.24,188.16,19.49666934]
[1736445785721,4.6234,188.29,188.16,19.49666934]
[1736445785923,3.1382,188.29,188.19,19.49666934]
[1736445786624,20.98186934,188.36,188.19,19.49666934]
[1736445786921,3.155,188.35,188.22,19.49666934]
[1736445787418,3.155,188.35,188.19,19.49666934]
[1736445787419,3.155,188.35,188.25,19.49666934]
[1736445787725,5.34,188.41,188.25,19.49666934]
[1736445787927,10.1199,188.41,188.25,19.49666934]
[1736445788119,2.6547,188.37,188.28,19.49666934]
[1736445788321,0.19008,188.4,188.28,19.49666934]
[1736445788923,2.84438,188.4,188.28,19.49666934]
[1736445789123,0.19008,188.4,188.28,19.49666934]
[1736445789326,0.19008,188.4,188.35,2.655]
[1736445789723,0.19008,188.4,188.31,19.49666934]
[1736445790226,0.19008,188.4,188.34,19.49666934]
[1736445791327,0.19008,188.4,188.37,2.6547]
[1736445792427,0.19008,188.4,188.35,2.6549]
[1736445792741,0.19008,188.4,188.34,19.49666934]
[1736445793031,0.19008,188.4,188.38,2.6545]
[1736445793226,0.19008,188.4,188.37,19.49666934]
[1736445793422,3.188,188.53,188.37,19.49666934]
[1736445793624,3.188,188.53,188.41,19.49666934]
[1736445793831,3.188,188.53,188.38,19.49666934]
[1736445794331,88.2,188.56,188.32,5.32]
[1736445794332,19.49666934,188.58,188.41,19.49666934]
[1736445794536,141.09830513,188.63,188.52,2.6526]
[1736445794833,1.49,188.63,188.5,19.49666934]
[1736445795227,1.49,188.63,188.53,19.49666934]
[1736445795432,1.49,188.63,188.47,19.49666934]
[1736445795732,26.28666934,188.63,188.47,19.49666934]
[1736445796028,2.6517,188.59,188.47,19.49666934]
[1736445796330,7.27265997,188.62,188.47,19.49666934]
[1736445796726,7.27265997,188.61,188.47,19.49666934]
[1736445797233,7.27265997,188.61,188.5,19.49666934]
[1736445797427,2.79717691,188.6,188.52,2.6525]
[1736445797623,2.79717691,188.6,188.47,19.49666934]
[1736445797822,22.29384625,188.6,188.44,19.49666934]
[1736445798031,2.79717691,188.59,188.44,19.49666934]
[1736445798430,2.6522,188.55,188.44,19.49666934]
[1736445798732,2.79717691,188.54,188.44,19.49666934]
[1736445798928,2.79717691,188.54,188.47,2.6533]
[1736445799128,2.79717691,188.54,188.44,19.49666934]
[1736445799536,2.6522,188.55,188.44,19.49666934]
[1736445799537,2.79717691,188.53,188.44,19.49666934]
[1736445800130,2.79717691,188.56,188.47,19.49666934]
[1736445800526,5.44937691,188.56,188.49,2.653]
[1736445800733,2.79717691,188.55,188.49,2.653]
[1736445801135,2.79717691,188.55,188.5,19.49666934]
[1736445801438,2.79717691,188.63,188.5,19.49666934]
[1736445801633,2.6519,188.57,188.5,2.6529]
[1736445802138,2.79717691,188.63,188.5,19.49666934]
[1736445802337,2.79717691,188.56,188.5,19.49666934]
[1736445802537,2.79717691,188.56,188.52,2.6526]
[1736445802736,2.79717691,188.56,188.5,19.49666934]
[1736445802936,2.79717691,188.55,188.5,19.49666934]
[1736445803336,2.79717691,188.55,188.44,19.49666934]
[1736445803732,2.79717691,188.54,188.48,2.6531]
[1736445804038,2.6522,188.55,188.48,2.6531]
[1736445804039,2.79717691,188.53,188.48,2.6531]
[1736445804738,2.79717691,188.54,188.48,2.6531]
[1736445805232,5.44947691,188.54,188.48,2.6531]
[1736445805832,2.79717691,188.54,188.44,19.49666934]
[1736445806135,2.79717691,188.53,188.44,19.49666934]
[1736445806927,2.79717691,188.53,188.47,2.6533]
[1736445807129,2.79717691,188.53,188.27,82.8]
[1736445807333,19.49666934,188.51,188.36,19.49666934]
[1736445807637,1.5147,188.5,188.36,19.49666934]
[1736445807935,21.6847,188.5,188.39,2.6544]
[1736445808240,21.6847,188.5,188.36,19.49666934]
[1736445808435,21.6847,188.5,188.39,19.49666934]
[1736445808436,2.79717691,188.49,188.39,19.49666934]
[1736445808836,21.6847,188.5,188.39,19.49666934]
[1736445809035,2.91620579,188.48,188.44,2.6537]
[1736445809433,2.91620579,188.48,188.35,2.6549]
[1736445809638,2.91620579,188.48,188.34,19.49666934]
[1736445809840,2.91620579,188.47,188.34,19.49666934]
[1736445810036,2.6537,188.44,188.34,19.49666934]
[1736445810243,2.91620579,188.47,188.35,2.6548]
[1736445810434,2.91620579,188.47,188.34,19.49666934]
[1736445810641,2.91620579,188.46,188.34,19.49666934]
[1736445811144,2.654,188.43,188.36,2.6548]
[1736445811548,2.654,188.43,188.31,5.28]
[1736445811549,2.91620579,188.45,188.33,2.6553]
[1736445811846,2.91620579,188.45,188.28,19.49666934]
[1736445811847,1.5288,188.42,188.28,19.49666934]
[1736445812037,1.605,188.41,188.28,19.49666934]
[1736445812242,1.605,188.41,188.31,19.49666934]
[1736445812745,2.6543,188.4,188.34,2.655]
[1736445812937,1.605,188.41,188.31,19.49666934]
[1736445813538,1.605,188.41,188.28,19.49666934]
[1736445814046,2.91480728,188.4,188.28,19.49666934]
[1736445814242,2.6545,188.39,188.32,2.6553]
[1736445814746,1.605,188.41,188.32,2.6553]
[1736445814946,1.605,188.41,188.29,2.6557]
[1736445815146,1.605,188.41,188.28,19.49666934]
[1736445815147,1.5449,188.4,188.28,19.49666934]
[1736445816046,1.5449,188.4,188.3,2.6556]
[1736445816047,2.655,188.35,188.3,2.6556]
[1736445816742,2.655,188.35,188.25,29.34441016]
[1736445816947,1.5449,188.4,188.25,9.84774082]
[1736445817241,19.49666934,188.36,188.25,9.84774082]
[1736445817437,19.49666934,188.33,188.25,9.84774082]
[1736445817640,4.6051,188.32,188.17,19.49666934]
[1736445817952,2.6564,188.26,188.2,2.657]
[1736445818247,2.6564,188.26,188.17,19.49666934]
[1736445818442,4.6051,188.32,188.17,2.6574]
[1736445818443,2.6567,188.23,188.17,2.6574]
[1736445818648,2.6567,188.23,188.14,19.49666934]
[1736445818843,19.49666934,188.3,188.14,19.49666934]
[1736445819246,2.6563,188.26,188.2,2.657]
[1736445819445,2.91471332,188.29,188.17,19.49666934]
[1736445819848,2.6564,188.26,188.2,2.6571]
[1736445820341,19.49666934,188.3,188.14,24.75666934]
[1736445820546,19.49666934,188.3,188.16,2.6576]
[1736445820744,24.75666934,188.3,188.14,24.75666934]
[1736445820942,19.49666934,188.24,188.11,2.6583]
[1736445821149,19.49666934,188.24,188.08,19.49666934]
[1736445821340,2.91556714,188.23,188.09,0.97671874]
[1736445821544,2.6573,188.19,188.08,19.49666934]
[1736445822346,2.6571,188.2,188.14,2.6579]
[1736445823045,19.49666934,188.27,188.14,2.6579]
[1736445823046,2.6572,188.19,188.14,2.6579]
[1736445823348,19.49666934,188.27,188.11,19.49666934]
[1736445823547,19.49666934,188.24,188.12,2.6581]
[1736445823950,2.6575,188.18,188.12,2.6581]
[1736445825745,1.5762,188.23,188.11,19.49666934]
[1736445826245,2.6574,188.18,188.12,2.6582]
[1736445827148,1.5762,188.23,188.11,19.49666934]
[1736445827455,21.07286934,188.23,188.05,19.49666934]
[1736445827753,19.49666934,188.2,188.06,5.26]
[1736445827949,4.41197391,188.22,188.04,60.32002326]
[1736445827950,2.6584,188.11,188.04,60.32002326]
[1736445828144,19.49666934,188.17,188.04,60.32002326]
[1736445828343,18.52,188.11,188.04,60.32002326]
[1736445829160,18.52,188.11,188.05,19.49666934]
[1736445829356,18.52,188.11,188.09,2.6585]
[1736445830353,18.52,188.11,188.08,2.6588]
[1736445831356,18.52,188.11,188.06,2.659]
[1736445831659,21.1784,188.11,188.04,60.32002326]
[1736445832053,18.52,188.11,188.06,2.659]
[1736445832254,18.52,188.11,188.04,60.32002326]
[1736445833350,2.6591,188.06,187.99,19.49666934]
[1736445833556,1.6282,188.1,187.97,9.86264514]
[1736445833756,19.49666934,188.08,187.97,9.86264514]
[1736445833965,2.6598,188.02,187.97,9.86264514]
[1736445834156,2.89887844,188.07,187.97,9.86264514]
[1736445834564,1.6282,188.1,187.97,9.86264514]
[1736445835059,1.6282,188.1,188.0,2.6598]
[1736445835257,2.89545914,188.09,188.0,2.6598]
[1736445835649,2.89545914,188.09,187.99,2.66]
[1736445835853,1.6282,188.1,187.97,9.86264514]
[1736445836050,19.49666934,188.08,187.97,9.86264514]
[1736445836765,2.6595,188.03,187.99,2.6601]
[1736445838355,19.49666934,188.05,187.97,9.86264514]
[1736445838558,3.1322,188.04,187.97,9.86264514]
[1736445838755,3.1322,188.04,187.96,2.6604]
[1736445839558,2.6599,188.01,187.96,2.6604]
[1736445839761,2.6599,188.01,187.97,2.6603]
[1736445840361,3.1322,188.04,187.94,2.6607]
[1736445840362,2.6603,187.98,187.94,2.6607]
[1736445840560,3.1322,188.04,187.85,60.38475463]
[1736445840561,19.49666934,188.02,187.87,19.49666934]
[1736445840762,1.5336,188.01,187.88,0.97791229]
[1736445840954,1.5336,188.01,187.92,2.6609]
[1736445841156,1.5336,188.01,187.86,5.24]
[1736445841359,2.6606,187.95,187.91,2.6612]
[1736445841561,1.5336,188.01,187.85,60.38475463]
[1736445841767,1.5336,188.01,187.86,0.97799344]
[1736445841959,2.6602,187.98,187.94,2.6608]
[1736445842154,1.5336,188.01,187.89,19.49666934]
[1736445842364,1.5336,188.01,187.9,0.97790027]
[1736445842564,4.1935,188.01,187.96,2.6604]
[1736445842765,1.5336,188.01,187.89,19.49666934]
[1736445842961,1.5336,188.01,187.9,0.97785623]
[1736445843463,1.5336,188.01,187.86,19.49666934]
[1736445843663,1.5336,188.01,187.9,2.6612]
[1736445843866,1.5336,188.01,187.86,19.49666934]
[1736445844161,2.661,187.93,187.87,0.977991]
[1736445844660,2.661,187.93,187.86,19.49666934]
[1736445844860,2.661,187.93,187.87,0.97806262]
[1736445845056,2.661,187.93,187.86,19.49666934]
[1736445845265,1.5336,188.01,187.87,0.97803025]
[1736445845465,1.5336,188.01,187.88,0.97803025]
[1736445845763,1.5336,188.01,187.86,19.49666934]
[1736445845967,1.5336,188.01,187.87,0.97799911]
[1736445846166,1.5336,188.01,187.88,0.97799911]
[1736445846364,1.5336,188.01,187.86,19.49666934]
[1736445846668,1.6032,188.04,187.95,19.49666934]
[1736445846961,5.8532,188.04,187.95,19.49666934]
[1736445847165,4.25,188.04,187.98,19.49666934]
[1736445847459,4.25,188.04,188.03,2.6595]
[1736445847764,4.25,188.04,188.01,19.49666934]
[1736445847765,1.5241,188.18,188.01,19.49666934]
[1736445847965,2.6584,188.11,188.01,19.49666934]
[1736445848168,1.53,188.15,188.01,19.49666934]
[1736445848362,2.6581,188.13,188.07,2.6588]
[1736445849765,2.6581,188.13,188.05,2.6591]
[1736445850062,2.6582,188.12,188.04,19.49666934]
[1736445850262,1.53,188.15,188.02,2.6595]
[1736445850464,2.659,188.07,187.98,19.49666934]
[1736445850764,19.49666934,188.12,187.98,19.49666934]
[1736445851462,2.89787641,188.11,188.0,2.6598]
[1736445851669,2.89787641,188.11,187.98,19.49666934]
[1736445851866,2.6591,188.06,187.98,19.49666934]
[1736445852075,2.89787641,188.1,188.01,2.6597]
[1736445852264,2.89787641,188.1,188.04,19.49666934]
[1736445852470,5.311,188.32,188.07,19.49666934]
[1736445852672,1.5744,188.25,188.13,19.49666934]
[1736445852971,1.5744,188.25,188.14,5.22]
[1736445852972,4.2309,188.25,188.14,5.22]
[1736445853169,1.5744,188.25,188.18,2.6572]
[1736445853474,2.6568,188.23,188.13,24.71666934]
[1736445853963,2.6568,188.23,188.16,2.6577]
[1736445854268,1.5744,188.25,188.16,19.49666934]
[1736445854475,2.6562,188.27,188.19,19.49666934]
[1736445854771,1.517,188.31,188.13,5.22]
[1736445854772,3.0058,188.31,188.16,19.49666934]
[1736445855164,3.0058,188.31,188.19,2.6572]
[1736445855363,2.6565,188.25,188.19,2.6572]
[1736445855666,3.0058,188.31,188.16,19.49666934]
[1736445855667,19.49666934,188.3,188.2,2.6571]
[1736445856173,3.0058,188.31,188.16,19.49666934]
[1736445856968,3.0058,188.31,188.22,2.6568]
[1736445857265,3.0058,188.31,188.16,19.49666934]
[1736445857467,2.6565,188.24,188.19,2.6572]
[1736445857875,2.6568,188.23,188.17,2.6574]
[1736445858079,19.49666934,188.3,188.17,2.6574]
[1736445858374,2.6567,188.23,188.18,2.6573]
[1736445858573,2.6567,188.23,188.13,19.49666934]
[1736445858774,5.2,188.28,188.13,19.49666934]
[1736445858974,19.49666934,188.27,188.1,24.69666934]
[1736445859274,18.83,188.27,188.13,19.49666934]
[1736445859669,2.6569,188.22,188.13,19.49666934]
[1736445859979,38.32666934,188.27,188.1,19.49666934]
[1736445860173,2.6571,188.21,188.14,2.6579]
[1736445860873,2.6571,188.2,188.14,2.6579]
[1736445861075,2.6571,188.2,188.13,2.6581]
[1736445861266,2.6573,188.19,188.13,2.6581]
[1736445861468,19.49666934,188.24,188.07,19.49666934]
[1736445861669,1.5686,188.23,188.07,19.49666934]
[1736445862179,2.6576,188.17,188.1,2.6584]
[1736445862480,2.6576,188.17,188.07,19.49666934]
[1736445862686,3.2311,188.22,188.14,19.49666934]
[1736445863075,3.2311,188.22,188.11,19.49666934]
[1736445863673,1.6401,188.22,188.14,19.49666934]
[1736445863876,18.83,188.27,188.17,19.49666934]
[1736445864075,2.6564,188.25,188.19,2.6571]
[1736445864277,18.83,188.27,188.19,2.6571]
[1736445864471,18.83,188.27,188.17,19.49666934]
[1736445864777,2.6565,188.25,188.17,19.49666934]
[1736445865278,2.6564,188.25,188.17,19.49666934]
[1736445865472,2.90196516,188.24,188.17,19.49666934]
[1736445865872,2.90196516,188.24,188.14,19.49666934]
[1736445866175,19.49666934,188.23,188.06,9.85726174]
[1736445866375,2.6577,188.16,188.07,2.6589]
[1736445866570,19.49666934,188.2,188.07,2.6589]
[1736445866771,1.4986,188.19,188.06,9.85726174]
[1736445867078,19.49666934,188.17,188.06,9.85726174]
[1736445867478,19.49666934,188.17,188.02,5.18]
[1736445867881,19.49666934,188.14,187.98,19.49666934]
[1736445868180,3.0887,188.13,187.95,102.47666934]
[1736445868377,2.90196516,188.12,187.96,5.18]
[1736445868581,2.6593,188.05,187.98,2.6601]
[1736445868879,19.49666934,188.11,187.95,24.67666934]
[1736445869084,2.6599,188.01,187.94,2.6607]
[1736445869276,2.6599,188.01,187.92,34.54120579]
[1736445869476,2.90196516,188.04,187.92,34.54120579]
[1736445869678,2.6599,188.0,187.93,2.6608]
[1736445869874,2.90196516,188.03,187.92,34.54120579]
[1736445870281,1.5941,188.07,187.92,34.54120579]
[1736445870282,2.90196516,188.02,187.92,34.54120579]
[1736445870481,2.90196516,188.02,187.98,19.49666934]
[1736445870984,4.6828,188.13,187.98,19.49666934]
[1736445870985,2.6589,188.08,187.98,19.49666934]
[1736445871382,2.6589,188.08,188.01,2.6596]
[1736445871579,4.6828,188.13,188.01,19.49666934]
[1736445871778,2.89851732,188.07,188.01,19.49666934]
[1736445871983,2.89851732,188.07,187.98,19.49666934]
[1736445872185,2.6594,188.04,187.98,19.49666934]
[1736445872386,2.89851732,188.07,187.98,19.49666934]
[1736445872685,2.89851732,188.03,187.98,19.49666934]
[1736445873073,2.89851732,188.03,188.01,19.49666934]
[1736445873278,2.89851732,188.06,188.01,31.7635468]
[1736445873576,2.89851732,188.06,188.02,2.6595]
[1736445874381,2.6589,188.08,188.02,2.6595]
[1736445874778,4.6828,188.13,188.01,31.7635468]
[1736445874979,2.90052584,188.07,188.01,34.4232468]
[1736445875685,4.6828,188.13,188.01,34.4232468]
[1736445875884,31.7635468,188.12,187.95,31.7635468]
[1736445876186,34.66381264,188.12,187.95,31.7635468]
[1736445876681,31.7635468,188.09,187.92,41.62808325]
[1736445876880,5.18,188.08,187.92,41.62808325]
[1736445877075,31.7635468,188.06,187.92,41.62808325]
[1736445877279,2.6598,188.01,187.95,2.6606]
[1736445877481,1.6191,188.05,187.95,2.6606]
[1736445877881,1.5233,188.04,187.96,2.6605]
[1736445878084,1.5233,188.04,187.92,41.62808325]
[1736445878287,2.6594,188.04,187.95,31.7635468]
[1736445878586,2.89805378,188.03,188.0,2.6598]
[1736445878882,2.89805378,188.03,187.98,31.7635468]
[1736445879081,2.89805378,188.02,187.98,31.7635468]
[1736445879586,2.89805378,188.02,188.01,2.6598]
[1736445879780,4.25,188.03,188.01,2.6598]
[1736445880782,4.25,188.03,188.0,2.6599]
[1736445880983,4.25,188.03,187.95,31.7635468]
[1736445881986,4.25,188.03,188.0,2.6598]
[1736445882186,4.25,188.03,187.95,31.7635468]
[1736445882686,6.9095,188.03,187.98,2.6602]
[1736445883188,4.25,188.03,187.95,31.7635468]
[1736445883383,2.6597,188.02,187.95,31.7635468]
[1736445883587,4.25,188.03,187.92,9.86453645]
[1736445883787,1.6152,188.01,187.92,9.86453645]
[1736445884385,1.6152,188.01,187.92,12.52563645]
[1736445884791,2.6603,187.98,187.92,12.52563645]
[1736445884994,2.6603,187.98,187.93,2.6608]
[1736445886185,1.6152,188.01,187.92,9.86453645]
[1736445886590,2.6602,187.98,187.94,2.6607]
[1736445886787,2.6602,187.98,187.92,9.86453645]
[1736445887201,2.6602,187.98,187.93,2.6609]
[1736445887495,1.6152,188.01,187.92,9.86453645]
[1736445887702,31.7635468,188.0,187.83,31.7635468]
[1736445888000,2.661,187.93,187.83,31.7635468]
[1736445888194,44.8135468,188.0,187.88,2.6615]
[1736445888391,44.8135468,188.0,187.83,31.7635468]
[1736445888593,44.8135468,188.0,187.82,65.58811765]
[1736445888594,13.05,188.0,187.87,31.7635468]
[1736445888797,2.89406293,187.99,187.92,2.6609]
[1736445888999,2.89406293,187.99,187.87,31.7635468]
[1736445889195,13.05,188.0,187.83,31.7635468]
[1736445889196,2.89406293,187.98,187.83,31.7635468]
[1736445889503,31.7635468,187.97,187.82,60.40811765]
[1736445889703,31.7635468,187.94,187.82,60.40811765]
[1736445889898,1.5049,187.93,187.82,60.40811765]
[1736445890096,2.6618,187.88,187.82,60.40811765]
[1736445890403,3.0226,187.92,187.82,60.40811765]
[1736445890900,3.0226,187.92,187.81,12.53356004]
[1736445890901,2.89406293,187.91,187.81,12.53356004]
[1736445891103,5.03406293,187.91,187.81,12.53356004]
[1736445891296,2.6619,187.87,187.81,12.53356004]
[1736445891497,2.89406293,187.9,187.81,9.87106004]
[1736445892302,2.14,187.91,187.83,31.7635468]
[1736445892597,2.14,187.91,187.86,2.6618]
[1736445892802,2.14,187.91,187.81,9.87106004]
[1736445893004,2.14,187.91,187.77,31.7635468]
[1736445893201,2.6618,187.87,187.77,31.7635468]
[1736445893401,2.6618,187.87,187.77,19.59812371]
[1736445893701,2.6618,187.87,187.82,2.6624]
[1736445893900,1.54,187.9,187.8,19.59812371]
[1736445894400,2.88396328,187.89,187.8,19.59812371]
[1736445894791,2.88396328,187.89,187.86,2.6619]
[1736445894998,2.14,187.91,187.86,2.6619]